Workbook

Sheet Characteristic
A1: GI7BT
A11: Vgk | B11: Ia
A12: -50 | B12: 0
A13: -20 | B13: 0.139
A14: -5 | B14: 0.381
A15: 20 | B15: 0.75
A16: 30 | B16: 0.87
A17: 50 | B17: 1.05
F36: Interpolation:
A37: CSTable | F37: Vgk | G37: Ia
A38: =CSTable(A12:A17,B12:B17) -> -50 | B38: 0 | C38: 0 | F38: =A12 -> -50 | G38: =csinterpolate($A$38:$C$43,F38) -> 0
A39: -20 | B39: 0.139 | C39: 0.0008027023491 | F39: =F38+($A$17-$A$12)/20 -> -45 | G39: 0.003656540126
A40: -5 | B40: 0.381 | C40: -0.0002162140946 | F40: -40 | G40: 0.01065767337
A41: 20 | B41: 0.75 | C41: -0.0001193363069 | F41: -35 | G41: 0.02434799286
A42: 30 | B42: 0.87 | C42: -0.0002801106155 | F42: -30 | G42: 0.04807209172
A43: 50 | B43: 1.05 | C43: 0 | F43: -25 | G43: 0.08517456306
F44: -20 | G44: 0.139
F45: -15 | G45: 0.2109204047
F46: -10 | G46: 0.2944173931
F47: -5 | G47: 0.381
F48: 0 | G48: 0.4636731533
F49: 5 | G49: 0.5414253436
F50: 10 | G50: 0.6147409479
F51: 15 | G51: 0.6841043723
F52: 20 | G52: 0.75
F53: 25 | G53: 0.8124965433
F54: 30 | G54: 0.87
F55: 35 | G55: 0.9211274197
F56: 40 | G56: 0.9670027654
F57: 45 | G57: 1.009376728
F58: 50 | G58: 1.05

Sheet Anode
A1: =Characteristic!A1 -> GI7BT
A3: CLASS AB2
A5: Inputs:
A6: Output cct efficiency (%) | B6: 0.95
A7: Vak pk RF (V) | B7: =B8+B10+B9-200 -> 2050
A8: DC anode supply voltage (V) | B8: 2200
A9: Grid bias voltage (V) | B9: -35
A10: Drive voltage peak (V) | B10: 85
A13: Calculated results:
A14: Tubes | B14: 1
A15: Anode current idle (A) | B15: =IF(B9<cutoff,0,$B$14*csinterpolate(CSIT,B9)) -> 0.02434799286
A16: Anode current peak (A) | B16: =$B$14*csinterpolate(CSIT,B10+B9) -> 1.05
A17: Anode current DC (A) | B17: =$B$14*H44 -> 0.3471687892
A18: Anode current fundamental (A) | B18: =$B$14*H45 -> 0.5452487331
A19: Anode RFpower (W) | B19: =$B$14*(B7-(B10+B9))*H45/2 -> 545.2487331
A20: Anode dissipation (W) | B20: =(B8+B10+B9)*B17-(B7*B18/2) -> 222.2498242
A21: Anode efficiency (%) | B21: =B19/(B8*B17) -> 0.7138900182
A22: Resonant load (ohms) | B22: =B7/H45/B14 -> 3759.751973
A23: Output power (W) | B23: =B6*B19 -> 517.9862964
A24: Output efficiency (%) | B24: =B19/(B8*B17)*B6 -> 0.6781955173
A41: Samples | B41: 64
A43: Time ° | B43: Vgk | C43: Ia | D43: If | E43: Idc | F43: Index | G43: FFT | H43: Amplitude
A44: 0 | B44: =$B$9+$B$10*SIN((CELL("row",B44)-CELL("row",$B$44))*2*PI()/$B$41) -> -35 | C44: =IF(B44<cutoff,0,csinterpolate(CSIT,B44)) -> 0.02434799286 | D44: =$H$45*SIN((CELL("row",B44)-CELL("row",$B$44))*2*PI()/$B$41) -> 0 | E44: =$H$44 -> 0.3471687892 | F44: 0 | G44: =fft(C44:C107) -> 22.2188025060202 | H44: =IMABS(G44)/$B$41 -> 0.3471687892
A45: =A44+1/$B$41*360 -> 5.625 | B45: -26.66854307 | C45: =IF(B45<cutoff,0,csinterpolate(CSIT,B45)) -> 0.07109930115 | D45: =$H$45*SIN((CELL("row",B45)-CELL("row",$B$44))*2*PI()/$B$41) -> 0.05344372159 | E45: =$H$44 -> 0.3471687892 | F45: 1 | G45: -2.53508287495832E-15-17.4479594589811i | H45: =IMABS(G45)/$B$41*2 -> 0.5452487331
A46: 11.25 | B46: -18.41732263 | C46: 0.1599977062 | D46: 0.1063727509 | E46: 0.3471687892 | F46: 2 | G46: -7.29446209233245+4.1210524576174E-15i | H46: 0.2279519404
A47: 16.875 | B47: -10.32580243 | C47: 0.2887908853 | D47: 0.1582773525 | E47: 0.3471687892 | F47: 3 | G47: 2.37534050791916E-15-0.405482633617374i | H47: 0.0126713323
A48: 22.5 | B48: -2.471908249 | C48: 0.4234462539 | D48: 0.2086576567 | E48: 0.3471687892 | F48: 4 | G48: -2.12097149962647-4.62764592271125E-16i | H48: 0.06628035936
A49: 28.125 | B49: 5.06872263 | C49: 0.5424619922 | D49: 0.2570284735 | E49: 0.3471687892 | F49: 5 | G49: -2.84343539382406E-16+0.461224241637967i | H49: 0.01441325755
A50: 33.75 | B50: 12.22346981 | C50: 0.6460456178 | D50: 0.3029239657 | E50: 0.3471687892 | F50: 6 | G50: -0.679249690502293-5.93895456901458E-16i | H50: 0.02122655283
A51: 39.375 | B51: 18.92342915 | C51: 0.7360803428 | D51: 0.3459021345 | E51: 0.3471687892 | F51: 7 | G51: -2.83002550701631E-15+0.33403064094156i | H51: 0.01043845753
A52: 45 | B52: 25.1040764 | C52: 0.8137513575 | D52: 0.3855490766 | E52: 0.3471687892 | F52: 8 | G52: -0.230108298417715+2.8484837101897E-15i | H52: 0.007190884326
A53: 50.625 | B53: 30.70588854 | C53: 0.8776022215 | D53: 0.4214829704 | E53: 0.3471687892 | F53: 9 | G53: 1.86103845008223E-15+0.195111319660446i | H53: 0.006097228739
A54: 56.25 | B54: 35.67491705 | C54: 0.9275878091 | D54: 0.4533577527 | E54: 0.3471687892 | F54: 10 | G54: -0.0828620428437143+1.92313748476405E-16i | H54: 0.002589438839
A55: 61.875 | B55: 39.96330747 | C55: 0.9666810071 | D55: 0.4808664521 | E55: 0.3471687892 | F55: 11 | G55: 1.34990632834711E-15+0.13040144809597i | H55: 0.004075045253
A56: 67.5 | B56: 43.52976026 | C56: 0.9971768395 | D56: 0.5037441446 | E56: 0.3471687892 | F56: 12 | G56: -0.00172783095500187-9.75604925350978E-16i | H56: 5.399471734e-05
A57: 73.125 | B57: 46.33992854 | C57: 1.020362324 | D57: 0.5217705057 | E57: 0.3471687892 | F57: 13 | G57: -1.37766063341331E-15+0.0714166419107571i | H57: 0.00223177006
A58: 78.75 | B58: 48.36674883 | C58: 1.03681554 | D58: 0.5347719316 | E58: 0.3471687892 | F58: 14 | G58: 0.0294517877427735+2.28288772993512E-15i | H58: 0.000920368367
A59: 84.375 | B59: 49.59070177 | C59: 1.046698319 | D59: 0.5426232114 | E59: 0.3471687892 | F59: 15 | G59: 2.07996169624498E-15+0.024790772863196i | H59: 0.000774711652
A60: 90 | B60: 50 | C60: 1.05 | D60: 0.5452487331 | E60: 0.3471687892 | F60: 16 | G60: 0.0265515420048379+1.77635683940025E-15i | H60: 0.0008297356877
A61: 95.625 | B61: 49.59070177 | C61: 1.046698319 | D61: 0.5426232114 | E61: 0.3471687892 | F61: 17 | G61: 1.15803096177255E-15+0.003054664633971i | H61: 9.545826981e-05
A62: 101.25 | B62: 48.36674883 | C62: 1.03681554 | D62: 0.5347719316 | E62: 0.3471687892 | F62: 18 | G62: 0.0164473613861498+2.89585847468787E-16i | H62: 0.0005139800433
A63: 106.875 | B63: 46.33992854 | C63: 1.020362324 | D63: 0.5217705057 | E63: 0.3471687892 | F63: 19 | G63: 1.01197999294116E-15-0.00304171612643827i | H63: 9.505362895e-05
A64: 112.5 | B64: 43.52976026 | C64: 0.9971768395 | D64: 0.5037441446 | E64: 0.3471687892 | F64: 20 | G64: 0.00992279400368384+4.18714855607402E-16i | H64: 0.0003100873126
A65: 118.125 | B65: 39.96330747 | C65: 0.9666810071 | D65: 0.4808664521 | E65: 0.3471687892 | F65: 21 | G65: 1.59124320978869E-15-0.00508378605900713i | H65: 0.0001588683143
A66: 123.75 | B66: 35.67491705 | C66: 0.9275878091 | D66: 0.4533577527 | E66: 0.3471687892 | F66: 22 | G66: 0.00473952489607973-1.5717492547274E-15i | H66: 0.000148110153
A67: 129.375 | B67: 30.70588854 | C67: 0.8776022215 | D67: 0.4214829704 | E67: 0.3471687892 | F67: 23 | G67: -4.87782896214407E-16-0.0052264465947213i | H67: 0.0001633264561
A68: 135 | B68: 25.1040764 | C68: 0.8137513575 | D68: 0.3855490766 | E68: 0.3471687892 | F68: 24 | G68: 0.0000133263519674215-1.56374818150763E-15i | H68: 4.16448499e-07
A69: 140.625 | B69: 18.92342915 | C69: 0.7360803428 | D69: 0.3459021345 | E69: 0.3471687892 | F69: 25 | G69: -1.34725469170573E-15-0.00304284476249372i | H69: 9.508889883e-05
A70: 146.25 | B70: 12.22346981 | C70: 0.6460456178 | D70: 0.3029239657 | E70: 0.3471687892 | F70: 26 | G70: -0.00233354752510528+1.19265627105195E-16i | H70: 7.292336016e-05
A71: 151.875 | B71: 5.06872263 | C71: 0.5424619922 | D71: 0.2570284735 | E71: 0.3471687892 | F71: 27 | G71: -1.29592568094824E-16-0.00065164520374586i | H71: 2.036391262e-05
A72: 157.5 | B72: -2.471908249 | C72: 0.4234462539 | D72: 0.2086576567 | E72: 0.3471687892 | F72: 28 | G72: -0.00245038025222488+3.24095134410229E-16i | H72: 7.657438288e-05
A73: 163.125 | B73: -10.32580243 | C73: 0.2887908853 | D73: 0.1582773525 | E73: 0.3471687892 | F73: 29 | G73: 8.40751350917462E-17+0.000214004696499431i | H73: 6.687646766e-06
A74: 168.75 | B74: -18.41732263 | C74: 0.1599977062 | D74: 0.1063727509 | E74: 0.3471687892 | F74: 30 | G74: -0.00216341500519945-2.54001463959042E-16i | H74: 6.760671891e-05
A75: 174.375 | B75: -26.66854307 | C75: 0.07109930115 | D75: 0.05344372159 | E75: 0.3471687892 | F75: 31 | G75: 4.41434269780189E-16+0.000114362378569766i | H75: 3.57382433e-06
A76: 180 | B76: =$B$9+$B$10*SIN((CELL("row",B76)-CELL("row",$B$44))*2*PI()/$B$41) -> -35 | C76: 0.02434799286 | D76: =$H$45*SIN((CELL("row",B76)-CELL("row",$B$44))*2*PI()/$B$41) -> 6.680106429e-17 | E76: 0.3471687892 | F76: 32 | G76: -0.00212604060589605 | H76: =IMABS(G76)/$B$41 -> 3.321938447e-05
A77: =A76+1/$B$41*360 -> 185.625 | B77: -43.33145693 | C77: 0.005455743709 | D77: -0.05344372159 | E77: 0.3471687892 | F77: 33 | G77: -4.76725050494592E-16-0.0001143623785822i
A78: 191.25 | B78: -51.58267737 | C78: 0 | D78: -0.1063727509 | E78: 0.3471687892 | F78: 34 | G78: -0.00216341500520345+8.39389321938278E-16i
A79: 196.875 | B79: -59.67419757 | C79: 0 | D79: -0.1582773525 | E79: 0.3471687892 | F79: 35 | G79: 4.7304680992114E-16-0.000214004696499431i
A80: 202.5 | B80: -67.52809175 | C80: 0 | D80: -0.2086576567 | E80: 0.3471687892 | F80: 36 | G80: -0.00245038025222599-2.75902347843249E-16i
A81: 208.125 | B81: -75.06872263 | C81: 0 | D81: -0.2570284735 | E81: 0.3471687892 | F81: 37 | G81: -4.42596398983822E-16+0.000651645203746082i
A82: 213.75 | B82: -82.22346981 | C82: 0 | D82: -0.3029239657 | E82: 0.3471687892 | F82: 38 | G82: -0.00233354752510567-2.6093696973116E-16i
A83: 219.375 | B83: -88.92342915 | C83: 0 | D83: -0.3459021345 | E83: 0.3471687892 | F83: 39 | G83: -1.85379631838321E-15+0.00304284476249367i
A84: 225 | B84: -95.1040764 | C84: 0 | D84: -0.3855490766 | E84: 0.3471687892 | F84: 40 | G84: 0.0000133263519673105+1.59240838831093E-15i
A85: 230.625 | B85: -100.7058885 | C85: 0 | D85: -0.4214829704 | E85: 0.3471687892 | F85: 41 | G85: 7.89014578499169E-17+0.00522644659472134i
A86: 236.25 | B86: -105.674917 | C86: 0 | D86: -0.4533577527 | E86: 0.3471687892 | F86: 42 | G86: 0.00473952489607984+1.63821931823023E-15i
A87: 241.875 | B87: -109.9633075 | C87: 0 | D87: -0.4808664521 | E87: 0.3471687892 | F87: 43 | G87: 1.79356863359175E-15+0.00508378605900726i
A88: 247.5 | B88: -113.5297603 | C88: 0 | D88: -0.5037441446 | E88: 0.3471687892 | F88: 44 | G88: 0.0099227940036836-5.57240106109028E-16i
A89: 253.125 | B89: -116.3399285 | C89: 0 | D89: -0.5217705057 | E89: 0.3471687892 | F89: 45 | G89: 6.19190740618492E-16+0.00304171612643778i
A90: 258.75 | B90: -118.3667488 | C90: 0 | D90: -0.5347719316 | E90: 0.3471687892 | F90: 46 | G90: 0.0164473613861485-2.75433197469588E-16i
A91: 264.375 | B91: -119.5907018 | C91: 0 | D91: -0.5426232114 | E91: 0.3471687892 | F91: 47 | G91: 1.01630557844455E-15-0.00305466463396887i
A92: 270 | B92: -120 | C92: 0 | D92: -0.5452487331 | E92: 0.3471687892 | F92: 48 | G92: 0.0265515420048379-1.77635683940025E-15i
A93: 275.625 | B93: -119.5907018 | C93: 0 | D93: -0.5426232114 | E93: 0.3471687892 | F93: 49 | G93: 3.67980885495364E-16-0.0247907728631946i
A94: 281.25 | B94: -118.3667488 | C94: 0 | D94: -0.5347719316 | E94: 0.3471687892 | F94: 50 | G94: 0.0294517877427735-1.57263069838813E-15i
A95: 286.875 | B95: -116.3399285 | C95: 0 | D95: -0.5217705057 | E95: 0.3471687892 | F95: 51 | G95: -1.48314867670835E-15-0.0714166419107569i
A96: 292.5 | B96: -113.5297603 | C96: 0 | D96: -0.5037441446 | E96: 0.3471687892 | F96: 52 | G96: -0.00172783095500167+1.2081305042071E-15i
A97: 298.125 | B97: -109.9633075 | C97: 0 | D97: -0.4808664521 | E97: 0.3471687892 | F97: 53 | G97: 1.2149064713236E-15-0.130401448095971i
A98: 303.75 | B98: -105.674917 | C98: 0 | D98: -0.4533577527 | E98: 0.3471687892 | F98: 54 | G98: -0.082862042843714-2.49554540985956E-16i
A99: 309.375 | B99: -100.7058885 | C99: 0 | D99: -0.4214829704 | E99: 0.3471687892 | F99: 55 | G99: 1.91510049734733E-15-0.195111319660446i
A100: 315 | B100: -95.1040764 | C100: 0 | D100: -0.3855490766 | E100: 0.3471687892 | F100: 56 | G100: -0.230108298417716-2.87714391699299E-15i
A101: 320.625 | B101: -88.92342915 | C101: 0 | D101: -0.3459021345 | E101: 0.3471687892 | F101: 57 | G101: -2.43236488351069E-15-0.334030640941559i
A102: 326.25 | B102: -82.22346981 | C102: 0 | D102: -0.3029239657 | E102: 0.3471687892 | F102: 58 | G102: -0.679249690502294+5.90053315452713E-16i
A103: 331.875 | B103: -75.06872263 | C103: 0 | D103: -0.2570284735 | E103: 0.3471687892 | F103: 59 | G103: 4.92224482879925E-16-0.461224241637966i
A104: 337.5 | B104: -67.52809175 | C104: 0 | D104: -0.2086576567 | E104: 0.3471687892 | F104: 60 | G104: -2.12097149962647+3.20571477349652E-16i
A105: 343.125 | B105: -59.67419757 | C105: 0 | D105: -0.1582773525 | E105: 0.3471687892 | F105: 61 | G105: 2.61626319024953E-15+0.405482633617373i
A106: 348.75 | B106: -51.58267737 | C106: 0 | D106: -0.1063727509 | E106: 0.3471687892 | F106: 62 | G106: -7.29446209233245-5.2945657840614E-15i
A107: 354.375 | B107: -43.33145693 | C107: 0.005455743709 | D107: -0.05344372159 | E107: 0.3471687892 | F107: 63 | G107: -7.52625907559854E-15+17.4479594589811i

Sheet Licence
A1: Licence / Copyright
A4: This spreadsheet, its macros and functions, and associated documentation are Copyright 2008 Owen Duffy.
A6: Licence is hereby granted to use this spreadsheet for its intended purpose.
A8: This licence does not permit distibution with any other software product, inclusion in any compilation of products,
A9: or copying to any WWW distribution sites or web servers.
A11: Users should not depend on the content without independent verification. No reponsiblity is accepted for the accuracy of the spreadsheet or for any errors.
A19: Module | B19: Version | C19: Date
A20: CubicSpline | B20: =cubicspline_version("v") -> 1.03 | C20: =cubicspline_version("d") -> 2010-07-06
A21: FFT | B21: =FFT_version("v") -> 1.05 | C21: =FFT_version("d") -> 2011-05-11
